bitfinex/quotes_SOLUSD_20250809
["timestamp","ask_amount","ask_price","bid_price","bid_amount"]
[1754714532170,5.37014616,178.52,178.51,0.06]
[1754714532572,11.64175942,178.52,178.51,0.06]
[1754714534183,26.74797499,178.52,178.51,1e-08]
[1754714536489,41.10621557,178.5,178.49,1e-08]
[1754714536693,41.10621557,178.5,178.39,0.06]
[1754714536906,5.08582302,178.44,178.4,0.72]
[1754714537089,0.67,178.45,178.4,0.72]
[1754714537397,0.81216157,178.45,178.41,0.72]
[1754714537708,5.60412463,178.44,178.42,0.72]
[1754714537871,31.74601482,178.45,178.39,0.06]
[1754714538073,31.74601482,178.45,178.43,0.72]
[1754714538267,5.60350212,178.46,178.39,15.16621557]
[1754714538571,5.60350212,178.46,178.44,5.80582302]
[1754714538903,5.89798459,178.45,178.4,5.08582302]
[1754714539111,5.89798459,178.45,178.39,5.86582302]
[1754714539112,0.67,178.44,178.39,5.86582302]
[1754714539269,0.67,178.43,178.39,5.86582302]
[1754714539470,0.14216157,178.43,178.39,0.06]
[1754714539717,0.67,178.42,178.39,0.06]
[1754714539866,10.69089,178.41,178.39,0.06]
[1754714540070,5.60506698,178.41,178.39,0.06]
[1754714540679,6.27506698,178.41,178.39,0.06]
[1754714541209,6.04014616,178.4,178.39,0.06]
[1754714541810,26.75174289,178.4,178.39,1e-08]
[1754714542096,11.64552732,178.4,178.39,1e-08]
[1754714543281,6.5597043,178.4,178.39,1e-08]
[1754714543517,11.64552732,178.4,178.39,1e-08]
[1754714544434,26.75174289,178.4,178.39,1e-08]
[1754714544590,21.66591987,178.4,178.39,1e-08]
[1754714544919,41.10621557,178.38,178.37,1e-08]
[1754714545121,46.19203859,178.38,178.37,1e-08]
[1754714545617,88.44420016,178.38,178.37,1e-08]
[1754714545823,94.0502098,178.38,178.37,1e-08]
[1754714549012,99.27819439,178.38,178.37,1e-08]
[1754714549222,0.28432314,178.37,178.34,0.06]
[1754714549526,46.33420016,178.35,178.34,0.06]
[1754714549701,68.07115278,178.35,178.34,0.06]
[1754714550097,68.07115278,178.35,178.34,1e-08]
[1754714552930,68.21331435,178.35,178.34,1e-08]
[1754714555523,70.46031635,178.35,178.34,1e-08]
[1754714556732,70.46031635,178.35,178.32,0.06]
[1754714556733,41.10621557,178.33,178.32,1e-08]
[1754714557024,87.65203859,178.33,178.32,1e-08]
[1754714557329,88.31203859,178.33,178.32,1e-08]
[1754714557498,41.24837714,178.31,178.3,0.06]
[1754714557698,41.24837714,178.31,178.28,0.06]
[1754714557699,15.24837714,178.3,178.28,0.06]
[1754714558031,93.40303969,178.29,178.28,0.06]
[1754714558203,94.06303969,178.29,178.28,0.06]
[1754714558549,94.06303969,178.29,178.21,0.2]
[1754714558550,26.0,178.26,178.22,0.69]
[1754714558712,5.08582302,178.24,178.22,0.69]
[1754714558918,5.08582302,178.24,178.21,0.2]
[1754714559127,5.08582302,178.22,178.21,0.89]
[1754714559345,5.08582302,178.22,178.21,0.2]
[1754714560039,10.69686555,178.22,178.21,0.2]
[1754714560541,10.69686555,178.22,178.21,0.89]
[1754714560746,5.61104253,178.22,178.21,0.2]
[1754714560919,5.61104253,178.22,178.21,0.89]
[1754714561240,5.61009817,178.25,178.21,0.89]
[1754714561427,10.69592119,178.25,178.22,0.69]
[1754714561739,5.61009817,178.25,178.23,0.69]
[1754714561921,10.69592119,178.25,178.24,0.69]
[1754714562538,5.61009817,178.25,178.24,0.69]
[1754714562954,5.08582302,178.28,178.24,0.69]
[1754714563116,5.60915413,178.28,178.24,0.69]
[1754714563315,5.60915413,178.28,178.24,5.77582302]
[1754714563549,5.60877628,178.3,178.25,0.69]
[1754714563744,5.60877628,178.3,178.27,5.08582302]
[1754714563945,5.60877628,178.3,178.21,5.81128278]
[1754714563946,5.60877628,178.3,178.28,5.08582302]
[1754714564239,5.60821042,178.31,178.29,0.69]
[1754714564735,5.60821042,178.31,178.28,5.08582302]
[1754714564941,5.60821042,178.31,178.3,0.69]
[1754714565342,57.22621557,178.35,178.3,0.69]
[1754714565647,26.0,178.32,178.31,0.69]
[1754714565940,5.60726701,178.34,178.31,5.77582302]
[1754714566117,5.60726701,178.34,178.32,0.69]
[1754714566315,5.60726701,178.34,178.33,0.69]
[1754714566521,0.14216157,178.33,178.29,0.69]
[1754714566723,0.94432314,178.33,178.29,0.69]
[1754714567042,6.03014616,178.33,178.29,0.69]
[1754714567738,5.6076304,178.33,178.3,0.69]
[1754714567943,5.6076304,178.33,178.3,5.77582302]
[1754714568122,5.6076304,178.33,178.31,0.69]
[1754714568531,5.6076304,178.33,178.32,0.69]
[1754714569644,10.69277564,178.35,178.31,5.08582302]
[1754714569848,11.35277564,178.35,178.31,5.77582302]
[1754714570037,6.26695262,178.35,178.31,5.77582302]
[1754714570237,5.60695262,178.35,178.32,0.69]
[1754714571446,5.60695262,178.35,178.33,0.69]
[1754714571656,5.60695262,178.35,178.33,5.77582302]
[1754714571945,5.60695262,178.35,178.34,0.69]
[1754714572134,5.60669574,178.36,178.34,5.77582302]
[1754714572330,5.60669574,178.36,178.34,5.08582302]
[1754714572638,0.03,178.37,178.35,5.77582302]
[1754714572639,5.63637068,178.37,178.35,5.77582302]
[1754714572953,0.66,178.36,178.33,5.08582302]
[1754714573144,0.66,178.36,178.31,5.77582302]
[1754714573340,26.0,178.33,178.28,5.77582302]
[1754714573530,31.74582302,178.33,178.28,5.77582302]
[1754714573934,5.08582302,178.32,178.28,0.69]
[1754714574934,5.60821042,178.31,178.28,0.69]
[1754714575747,5.60821042,178.31,178.28,5.77582302]
[1754714576135,5.60791899,178.32,178.29,5.77582302]
[1754714576457,5.60791899,178.32,178.3,5.77582302]
[1754714576748,5.60791899,178.32,178.31,0.69]
[1754714577951,31.60763847,178.33,178.31,0.69]
[1754714578251,31.60763847,178.33,178.32,5.08582302]
[1754714578424,31.60763847,178.33,178.27,5.60937669]
[1754714578629,31.60763847,178.33,178.32,5.77582302]
[1754714578947,31.60763847,178.33,178.32,5.08582302]
[1754714579446,31.60763847,178.33,178.31,5.08582302]
[1754714580339,5.60726666,178.35,178.32,5.08582302]
[1754714580554,5.60726666,178.35,178.33,5.77582302]
[1754714580753,0.03,178.37,178.34,5.77582302]
[1754714580942,0.03,178.37,178.35,5.08582302]
[1754714581142,0.03,178.37,178.35,0.69]
[1754714581869,5.63634374,178.37,178.26,0.28432314]
[1754714582040,5.63634374,178.37,178.33,5.08582302]
[1754714582242,0.66,178.36,178.29,0.69]
[1754714582471,0.66,178.36,178.32,5.08582302]
[1754714582658,0.66,178.36,178.33,5.08582302]
[1754714582858,5.63634374,178.37,178.34,9.21623557]
[1754714583065,5.63634374,178.37,178.34,5.77582302]
[1754714583358,6.29634374,178.37,178.34,5.08582302]
[1754714583552,0.65,178.36,178.33,5.08582302]
[1754714583753,5.63634374,178.37,178.34,9.21907211]
[1754714584065,5.63634374,178.37,178.34,5.75582302]
[1754714584838,5.63634374,178.37,178.34,5.08582302]
[1754714585050,5.63634374,178.37,178.33,5.08582302]
[1754714585051,6.28634374,178.37,178.33,5.08582302]
[1754714585434,5.63634374,178.37,178.33,5.08582302]
[1754714585648,0.65,178.36,178.32,5.08582302]
[1754714585848,5.63634374,178.37,178.34,5.08582302]
[1754714586162,5.63634374,178.37,178.34,5.75582302]
[1754714586579,5.63634374,178.37,178.35,5.08582302]
[1754714586779,0.03,178.37,178.35,5.75582302]
[1754714587268,0.03,178.37,178.35,0.67]
[1754714587463,0.65,178.36,178.33,5.08582302]
[1754714587758,0.65,178.36,178.32,5.08582302]
[1754714587960,0.65,178.36,178.33,4.13904602]
[1754714588152,0.65,178.36,178.32,5.08582302]
[1754714588355,0.65,178.36,178.33,4.14013626]
[1754714588565,6.25695262,178.35,178.28,0.73]
[1754714588769,11.34277564,178.35,178.29,4.14116863]
[1754714588953,6.25695262,178.35,178.3,4.14116863]
[1754714589155,0.65,178.34,178.31,4.14116863]
[1754714589370,19.62433417,178.35,178.31,5.75582302]
[1754714589872,24.71015719,178.35,178.3,5.08582302]
[1754714590179,24.71015719,178.35,178.31,4.14232035]
[1754714590180,0.65,178.34,178.31,4.14232035]
[1754714590387,0.65,178.33,178.3,5.08582302]
[1754714590581,5.60789591,178.32,178.31,4.14282927]
[1754714590889,6.25789591,178.32,178.29,9.22865229]
[1754714591089,5.60789591,178.32,178.3,4.14282927]
[1754714591254,5.60789591,178.32,178.29,5.75582302]
[1754714591456,5.60789591,178.32,178.3,4.14336524]
[1754714592875,0.65,178.32,178.3,4.14336524]
[1754714593070,0.65,178.32,178.28,0.06]
[1754714593259,0.65,178.32,178.28,9.29024955]
[1754714593463,0.65,178.32,178.28,5.81582302]
[1754714594055,0.65,178.32,178.29,5.08582302]
[1754714594383,19.62653507,178.33,178.29,0.67]
[1754714594565,0.65,178.32,178.29,5.08582302]
[1754714594880,5.60821042,178.31,178.29,5.08582302]
[1754714595057,5.60821042,178.31,178.28,0.73]
[1754714595260,5.60821042,178.31,178.29,5.08582302]
[1754714596691,5.60821042,178.31,178.28,0.73]
[1754714596692,0.65,178.31,178.28,0.06]
[1754714597068,0.65,178.3,178.28,0.06]
[1754714597269,5.08582302,178.32,178.28,0.06]
[1754714597270,0.65,178.31,178.28,0.06]
[1754714598182,5.60852495,178.3,178.28,0.06]
[1754714598383,5.60852495,178.3,178.28,5.14582302]
[1754714598887,5.60852495,178.3,178.28,0.73]
[1754714599104,5.60812463,178.32,178.29,5.75582302]
[1754714599268,5.60812463,178.32,178.3,5.08582302]
[1754714599468,5.60812463,178.32,178.3,5.75582302]
[1754714599689,5.60812463,178.32,178.29,5.08582302]
[1754714599965,5.60812463,178.32,178.29,5.75582302]
[1754714600480,5.60812463,178.32,178.3,5.75582302]
[1754714601203,5.73582302,178.31,178.28,0.06]
[1754714601405,5.08582302,178.29,178.28,0.06]
[1754714601764,47.09582302,178.3,178.28,0.06]
[1754714601986,5.87798459,178.29,178.28,1e-08]
[1754714602713,11.48682412,178.29,178.28,1e-08]
[1754714605226,11.62898569,178.29,178.28,1e-08]
[1754714606812,52.98898569,178.29,178.28,1e-08]
[1754714607319,47.90316267,178.29,178.28,1e-08]
[1754714607512,52.98898569,178.29,178.28,1e-08]
[1754714609629,11.62898569,178.29,178.28,1e-08]
[1754714609919,52.98898569,178.29,178.28,1e-08]
[1754714610721,11.62898569,178.29,178.28,1e-08]
[1754714610909,52.96898569,178.29,178.28,1e-08]
[1754714611226,70.16962166,178.29,178.28,1e-08]
[1754714611929,68.07520126,178.29,178.28,1e-08]
[1754714612626,70.16867473,178.29,178.28,1e-08]
[1754714613126,62.98937824,178.29,178.28,1e-08]
[1754714613434,68.07520126,178.29,178.28,1e-08]
[1754714616530,21.64937824,178.29,178.28,1e-08]
[1754714616707,31.60883953,178.29,178.28,0.71000001]
[1754714617026,46.94883953,178.29,178.28,0.71000001]
[1754714617812,5.60883953,178.29,178.28,0.71000001]
[1754714618008,5.60883953,178.29,178.28,1e-08]
[1754714618737,11.41466255,178.29,178.28,1e-08]
[1754714619033,11.55682412,178.29,178.28,1e-08]
[1754714619329,10.83682412,178.29,178.28,1e-08]
[1754714620520,10.97898569,178.29,178.28,1e-08]
[1754714622233,31.89316267,178.29,178.28,1e-08]
[1754714622412,78.29898569,178.29,178.28,1e-08]
[1754714622909,79.01898569,178.29,178.28,1e-08]
[1754714624937,79.01898569,178.29,178.26,1e-08]
[1754714624938,41.10621557,178.27,178.26,1e-08]
[1754714625142,46.19203859,178.27,178.26,1e-08]
[1754714625309,88.21203859,178.27,178.26,1e-08]
[1754714625514,88.35420016,178.27,178.26,1e-08]
[1754714626649,93.96366894,178.27,178.26,1e-08]
[1754714628243,93.96366894,178.27,178.24,1e-08]
[1754714628442,46.33420016,178.25,178.24,1e-08]
[1754714628610,41.10621557,178.23,178.22,1e-08]
[1754714628812,87.49203859,178.23,178.22,1e-08]
[1754714629013,41.10621557,178.24,178.22,0.71000001]
[1754714629211,41.3,178.23,178.22,0.71000001]
[1754714629428,67.28,178.23,178.22,0.71000001]
[1754714629638,67.42216157,178.23,178.22,0.71000001]
[1754714630634,72.91072771,178.23,178.22,0.71000001]
[1754714631838,14.02367195,178.27,178.22,5.79582303]
[1754714632040,5.08582302,178.29,178.24,5.08582302]
[1754714632226,14.74165607,178.3,178.25,5.79582302]
[1754714632227,41.28,178.28,178.25,5.79582302]
[1754714632422,26.0,178.27,178.26,0.71]
[1754714632621,26.0,178.27,178.25,5.08582302]
[1754714632820,26.0,178.27,178.23,5.08582302]
[1754714633025,5.80582302,178.26,178.22,1e-08]
[1754714633224,47.08582302,178.26,178.22,0.71000001]
[1754714633426,42.0,178.26,178.22,5.08582303]
[1754714633718,41.28,178.26,178.23,0.71]
[1754714633914,5.61009817,178.25,178.23,0.71]
[1754714634319,5.61009817,178.25,178.22,1e-08]
[1754714634515,5.61009817,178.25,178.22,0.71000001]
[1754714635926,46.89009817,178.25,178.22,5.79582303]
[1754714636135,46.89009817,178.25,178.23,0.71]
[1754714636333,46.89009817,178.25,178.24,0.71]
[1754714636741,5.61009817,178.25,178.24,0.71]
[1754714636943,46.87009817,178.25,178.24,0.71]
[1754714637143,5.61009817,178.25,178.24,0.71]
[1754714637329,5.61009817,178.25,178.22,5.08582303]
[1754714637645,5.61009817,178.25,178.22,5.79582303]
[1754714637846,5.61009817,178.25,178.23,0.71]
[1754714638942,5.61009817,178.25,178.23,5.08582302]
[1754714639148,5.61009817,178.25,178.24,0.71]
[1754714639331,5.61009817,178.25,178.24,5.79582302]
[1754714640042,5.61009817,178.25,178.24,9.95168281]
[1754714640242,60.89349757,178.27,178.24,9.95168281]
[1754714640463,60.89349757,178.27,178.25,0.71]
[1754714641047,60.89349757,178.27,178.24,5.08582302]
[1754714641349,60.89349757,178.27,178.24,0.71]
[1754714643626,60.89349757,178.27,178.22,1e-08]
[1754714643830,5.77582302,178.26,178.22,1e-08]
[1754714644048,41.24,178.25,178.23,4.16192486]
[1754714644232,41.24,178.25,178.22,0.71000001]
[1754714644552,26.0,178.24,178.23,9.24942507]
[1754714644741,5.60946878,178.27,178.24,0.71]
[1754714645047,46.84946878,178.27,178.24,5.79582302]
[1754714645233,46.84946878,178.27,178.22,1e-08]
[1754714645234,47.53946878,178.27,178.22,1e-08]
[1754714645441,47.53946878,178.27,178.23,9.9605433]
[1754714645638,47.53946878,178.27,178.24,4.16472028]
[1754714645840,60.87314073,178.27,178.23,5.79582302]
[1754714646033,60.87314073,178.27,178.24,9.96106622]
[1754714646240,60.87314073,178.27,178.25,4.1658026]
[1754714646457,60.87314073,178.27,178.24,5.79582302]
[1754714646632,60.87314073,178.27,178.25,4.16609145]
[1754714646958,60.87314073,178.27,178.24,0.71]
[1754714647132,60.87314073,178.27,178.25,4.16632805]
[1754714647333,60.87314073,178.27,178.24,5.79582302]
[1754714647552,60.87314073,178.27,178.25,4.16642251]
[1754714647860,60.87314073,178.27,178.24,5.79582302]
[1754714648031,60.87314073,178.27,178.25,4.16620812]
[1754714648230,60.87314073,178.27,178.24,5.79582302]
[1754714648440,60.87314073,178.27,178.25,4.16631101]
[1754714648650,60.87314073,178.27,178.24,5.79582302]
[1754714648950,60.87314073,178.27,178.25,4.16631232]
[1754714649150,60.87314073,178.27,178.24,0.71]
[1754714649354,60.87314073,178.27,178.25,4.16650003]
[1754714649542,46.84946878,178.27,178.25,5.79582302]
[1754714649747,5.63946878,178.27,178.26,4.16577999]
[1754714650048,5.63946878,178.27,178.26,9.96160301]
[1754714650436,5.63946878,178.27,178.26,4.16577999]
[1754714651041,6.32946878,178.27,178.26,4.16577999]
[1754714651550,0.03,178.27,178.26,4.16577999]
[1754714653047,0.03,178.27,178.26,4.16488397]
[1754714655559,0.03,178.27,178.24,5.79582302]
[1754714655757,0.03,178.27,178.25,9.24966363]
[1754714656054,0.03,178.27,178.26,4.16384061]
[1754714659960,0.03,178.27,178.26,4.16325484]
[1754714660165,0.72,178.27,178.23,5.08582302]
[1754714660350,0.72,178.27,178.24,4.16420573]
[1754714660551,0.72,178.27,178.23,5.79582302]
[1754714660754,0.72,178.27,178.24,4.16420835]
[1754714661052,10.69560648,178.26,178.23,0.71]
[1754714661251,0.69,178.25,178.22,1e-08]
[1754714661563,0.69,178.25,178.23,4.16481462]
[1754714661741,26.0,178.23,178.22,1e-08]
[1754714661936,26.0,178.23,178.22,4.1647062]
[1754714662255,31.77582302,178.23,178.22,1e-08]
[1754714662447,26.69,178.23,178.22,1e-08]
[1754714662648,31.77582302,178.23,178.22,1e-08]
[1754714662939,26.69,178.23,178.22,1e-08]
[1754714663142,36.69655073,178.23,178.22,4.16629383]
[1754714663351,37.38655073,178.23,178.22,1e-08]
[1754714663935,37.38655073,178.23,178.21,0.2]
[1754714663936,78.54655073,178.23,178.21,0.2]
[1754714664136,5.08582302,178.22,178.21,0.2]
[1754714664340,5.77582302,178.22,178.21,0.2]
[1754714665353,10.69686555,178.22,178.21,0.2]
[1754714665749,5.61104253,178.22,178.21,0.2]
[1754714665948,10.69686555,178.22,178.21,0.2]
[1754714666562,5.61104253,178.22,178.21,0.91]
[1754714670270,5.61041292,178.24,178.21,0.91]
[1754714670572,10.69623594,178.24,178.22,0.71]
[1754714670775,10.69623594,178.24,178.21,0.2]
[1754714670976,10.69623594,178.24,178.21,0.91]
[1754714671476,11.38623594,178.24,178.21,0.91]
[1754714671860,6.30041292,178.24,178.21,0.91]
[1754714672451,5.61009817,178.25,178.21,0.2]
[1754714672657,5.61009817,178.25,178.22,0.71]
[1754714672867,5.61009817,178.25,178.23,0.71]
[1754714673053,10.69592119,178.25,178.23,0.71]
[1754714673370,5.77582302,178.24,178.21,0.2]
[1754714673667,0.69,178.24,178.21,0.2]
[1754714673870,5.77582302,178.24,178.21,0.2]
[1754714674669,5.61072771,178.23,178.22,0.72]
[1754714675245,5.61072771,178.23,178.21,0.2]
[1754714675662,5.61072771,178.23,178.22,0.72]
[1754714676648,5.61041292,178.24,178.22,0.72]
[1754714676856,6.31041292,178.24,178.21,0.2]
[1754714677264,11.39623594,178.24,178.21,0.2]
[1754714678764,6.31041292,178.24,178.21,0.2]
[1754714678967,11.39623594,178.24,178.21,0.2]
[1754714679460,0.7,178.23,178.21,0.2]
[1754714680280,5.61041292,178.24,178.21,0.2]
[1754714680583,6.31041292,178.24,178.21,0.2]
[1754714681185,5.61041292,178.24,178.21,0.92]
[1754714682401,5.61041292,178.24,178.22,0.72]
[1754714683870,5.61009817,178.25,178.22,0.72]
[1754714684886,0.7,178.24,178.21,0.2]
[1754714686078,5.61072771,178.23,178.21,0.2]
[1754714686472,6.31072771,178.23,178.21,0.2]
[1754714686691,0.7,178.22,178.21,0.2]
[1754714687396,5.78582302,178.22,178.21,0.2]
[1754714688290,11.39686555,178.22,178.21,0.2]
[1754714690170,26.0,178.19,178.18,0.06]
[1754714690673,26.7,178.19,178.18,0.06]
[1754714692006,31.78582302,178.19,178.18,1e-08]
[1754714692301,37.39781022,178.19,178.18,1e-08]
[1754714692709,32.3119872,178.19,178.18,1e-08]
[1754714692915,37.39781022,178.19,178.18,1e-08]
[1754714694105,78.45781022,178.19,178.18,1e-08]
[1754714697010,93.56402579,178.19,178.18,1e-08]
[1754714697448,93.56402579,178.19,178.17,1e-08]
[1754714697585,5.08582302,178.18,178.17,1e-08]
[1754714697782,5.78582302,178.18,178.17,1e-08]
[1754714698310,11.39812518,178.18,178.17,1e-08]
[1754714699592,5.61230216,178.18,178.17,0.72000001]
[1754714701514,5.61230216,178.18,178.17,1e-08]
[1754714703017,5.61230216,178.18,178.17,0.72000001]
[1754714703809,5.6119872,178.19,178.17,0.72000001]
[1754714704937,0.7,178.18,178.17,1e-08]
[1754714705112,5.78582302,178.18,178.17,1e-08]
[1754714705317,0.7,178.18,178.17,1e-08]
[1754714706039,6.31230216,178.18,178.17,1e-08]
[1754714706919,11.39812518,178.18,178.17,1e-08]
[1754714707744,5.61230216,178.18,178.17,1e-08]
[1754714707918,5.61230216,178.18,178.17,0.66000001]
[1754714708411,5.61230216,178.18,178.17,1e-08]
[1754714708612,10.69812518,178.18,178.17,1e-08]
[1754714708837,11.39812518,178.18,178.17,1e-08]
[1754714709044,6.31230216,178.18,178.17,1e-08]
[1754714709244,11.39812518,178.18,178.17,1e-08]
[1754714709855,37.39812518,178.18,178.17,1e-08]
[1754714710255,52.64650232,178.18,178.17,1e-08]
[1754714710476,52.64650232,178.18,178.14,1e-08]
[1754714710477,46.19203859,178.16,178.14,1e-08]
[1754714710657,46.08582302,178.15,178.14,1e-08]
[1754714710834,46.78582302,178.15,178.14,1e-08]
[1754714711553,52.39907028,178.15,178.14,1e-08]
[1754714712149,51.69907028,178.15,178.14,1e-08]
[1754714713245,67.78960899,178.15,178.14,1e-08]
[1754714713451,41.10621557,178.13,178.12,1e-08]
[1754714713635,87.33420016,178.13,178.12,1e-08]
[1754714713841,88.03420016,178.13,178.12,1e-08]
[1754714714647,88.17636173,178.13,178.12,1e-08]
[1754714715548,93.79023923,178.13,178.12,1e-08]
[1754714717364,93.09023923,178.13,178.12,1e-08]
[1754714717967,77.69970052,178.13,178.12,1e-08]
[1754714719064,78.39970052,178.13,178.12,1e-08]
[1754714719264,77.69970052,178.13,178.12,1e-08]
[1754714719465,31.6138775,178.13,178.12,0.66000001]
[1754714719842,5.6138775,178.13,178.12,0.66000001]
[1754714720664,31.6138775,178.13,178.12,0.66000001]
[1754714720961,5.6138775,178.13,178.12,0.66000001]
[1754714721364,5.61356236,178.14,178.12,0.66000001]
[1754714721541,5.61356236,178.14,178.13,0.66]
[1754714722967,31.61324695,178.16,178.13,0.66]
[1754714723465,31.61324695,178.16,178.13,5.74582302]
[1754714723754,31.61324695,178.16,178.14,0.66]
[1754714725664,36.69906997,178.16,178.14,0.66]
[1754714725847,36.69906997,178.16,178.12,0.66000001]
[1754714726052,5.08582302,178.15,178.12,0.66000001]
[1754714726361,5.08582302,178.15,178.12,1e-08]
[1754714726666,5.78582302,178.15,178.12,1e-08]
[1754714727569,5.78582302,178.15,178.12,0.66000001]
[1754714727881,5.61356236,178.14,178.12,1e-08]
[1754714728257,5.61356236,178.14,178.12,0.66000001]
[1754714728574,5.61356236,178.14,178.12,1e-08]
[1754714729071,5.61356236,178.14,178.12,0.66000001]
[1754714729644,11.39938538,178.14,178.12,1e-08]
[1754714729967,5.61356236,178.14,178.12,1e-08]
[1754714732161,10.69938538,178.14,178.12,1e-08]
[1754714732563,5.61356236,178.14,178.12,1e-08]
[1754714732766,10.69938538,178.14,178.12,1e-08]
[1754714733575,11.36938538,178.14,178.12,1e-08]
[1754714733784,10.69938538,178.14,178.12,1e-08]
[1754714734089,5.61356236,178.14,178.12,1e-08]
[1754714734285,10.69938538,178.14,178.12,1e-08]
[1754714734464,5.61356236,178.14,178.12,1e-08]
[1754714734789,5.61261716,178.17,178.13,0.69]
[1754714735021,31.61261716,178.17,178.13,5.77582302]
[1754714735288,31.61261716,178.17,178.14,0.69]
[1754714735454,31.61261716,178.17,178.15,0.69]
[1754714735657,31.61261716,178.17,178.16,0.69]
[1754714736371,5.61261716,178.17,178.16,0.69]
[1754714736754,5.64230216,178.18,178.16,0.69]
[1754714737666,6.31230216,178.18,178.15,5.08582302]
[1754714737981,11.39812518,178.18,178.14,0.69]
[1754714738576,6.31230216,178.18,178.14,0.69]
[1754714738800,11.39812518,178.18,178.14,0.69]
[1754714739173,24.75888059,178.18,178.12,1e-08]
[1754714739478,5.75582302,178.17,178.12,5.77582303]
[1754714739788,0.67,178.16,178.12,5.77582303]
[1754714739995,0.67,178.16,178.12,0.69000001]
[1754714740175,0.67,178.16,178.12,5.77582303]
[1754714740381,5.61324726,178.15,178.12,5.77582303]
[1754714740995,5.61324726,178.15,178.12,0.69000001]
[1754714741193,5.61324726,178.15,178.13,0.69]
[1754714741992,5.61324726,178.15,178.12,5.08582303]
[1754714742194,5.61293219,178.16,178.12,5.77582303]
[1754714742390,6.28293219,178.16,178.12,5.77582303]
[1754714742594,6.28293219,178.16,178.12,0.69000001]
[1754714742788,6.28293219,178.16,178.12,5.77582303]
[1754714743399,5.61293219,178.16,178.13,5.08582302]
[1754714743576,5.61293219,178.16,178.13,5.77582302]
[1754714744400,5.61261716,178.17,178.13,5.77582302]
[1754714744778,6.28261716,178.17,178.13,5.77582302]
[1754714745691,6.28261716,178.17,178.13,0.69]
[1754714746009,6.28261716,178.17,178.13,5.77582302]
[1754714746194,6.28261716,178.17,178.13,0.69]
[1754714746903,5.61324726,178.15,178.13,5.77582302]
[1754714747203,5.61324726,178.15,178.13,0.69]
[1754714747713,5.61324726,178.15,178.13,5.77582302]
[1754714749416,5.61293219,178.16,178.13,5.77582302]
[1754714749620,6.28293219,178.16,178.13,5.77582302]
[1754714750593,6.28293219,178.16,178.12,1e-08]
[1754714750910,5.61293219,178.16,178.13,5.77582302]
[1754714751100,5.61293219,178.16,178.14,0.69]
[1754714751687,5.61293219,178.16,178.13,5.08582302]
[1754714751996,5.61293219,178.16,178.13,0.69]
[1754714752193,0.67,178.16,178.12,1e-08]
[1754714752395,0.67,178.16,178.13,5.08582302]
[1754714752888,5.61261716,178.17,178.13,5.08582302]
[1754714753083,5.61261716,178.17,178.15,5.08582302]
[1754714753316,5.61261716,178.17,178.15,5.77582302]
[1754714753513,5.61261716,178.17,178.15,0.69]
[1754714753716,5.61261716,178.17,178.16,0.69]
[1754714754117,5.64230216,178.18,178.16,0.69]
[1754714754414,5.64230216,178.18,178.15,5.08582302]
[1754714754714,5.64230216,178.18,178.15,5.77582302]
[1754714754910,0.67,178.17,178.14,5.08582302]
[1754714755216,10.72812518,178.18,178.14,5.77582302]
[1754714755396,11.39812518,178.18,178.14,5.77582302]
[1754714755599,6.31230216,178.18,178.15,5.08582302]
[1754714755917,5.64230216,178.18,178.15,5.77582302]
[1754714757597,5.64230216,178.18,178.15,0.69]
[1754714757926,6.31230216,178.18,178.15,0.69]
[1754714758096,6.31230216,178.18,178.14,5.77582302]
[1754714758291,0.67,178.17,178.14,5.77582302]
[1754714759414,5.75582302,178.16,178.12,1e-08]
[1754714759612,5.08582302,178.15,178.12,1e-08]
[1754714760011,0.67,178.14,178.12,1e-08]
[1754714760190,5.75582302,178.16,178.12,0.69000001]
[1754714760396,25.39998308,178.17,178.13,0.69]
[1754714760694,19.64416006,178.17,178.13,0.69]
[1754714760890,5.75582302,178.16,178.12,1e-08]
[1754714761319,6.28324726,178.15,178.12,1e-08]
[1754714763306,5.61324726,178.15,178.12,1e-08]
[1754714763494,5.6138775,178.13,178.12,1e-08]
[1754714766108,6.32324726,178.15,178.12,1e-08]
[1754714767004,0.71,178.14,178.12,1e-08]